lending/lending_fUSD_20250122
["ID","MTS","AMOUNT","RATE_DAILY","PERIOD"]
[350000777,1737559845142,-500.0,0.0002107,2]
[350000778,1737559845151,-648.59741008,0.0002107,2]
[350000779,1737559845161,-500.0,0.0002107,2]
[350000780,1737559845171,-1385.94,0.0002107,2]
[350000781,1737559845180,-500.0,0.0002107,2]
[350000782,1737559845193,-500.0,0.0002107,2]
[350000783,1737559845202,-3036.04,0.0002107,2]
[350000784,1737559845213,-914.59,0.0002107,2]
[350000785,1737559845223,-500.0,0.0002107,2]
[350000786,1737559845232,-500.0,0.0002107,2]
[350000787,1737559845242,-957.59,0.0002107,2]
[350000788,1737559845252,-500.0,0.0002107,2]
[350000789,1737559845262,-500.0,0.0002107,2]
[350000790,1737559845271,-500.0,0.0002107,2]
[350000791,1737559845281,-500.0,0.0002107,2]
[350000792,1737559845291,-957.88,0.0002107,2]
[350000793,1737559845300,-500.0,0.0002107,2]
[350000794,1737559845310,-500.0,0.0002107,2]
[350000795,1737559845320,-500.0,0.0002107,2]
[350000796,1737559845329,-2236.66,0.0002107,2]
[350000797,1737559845339,-500.0,0.0002107,2]
[350000798,1737559845349,-500.0,0.0002107,2]
[350000799,1737559845358,-717.01,0.0002107,2]
[350000800,1737559845368,-500.0,0.0002107,2]
[350000801,1737559845378,-500.0,0.0002107,2]
[350000802,1737559845388,-500.0,0.0002107,2]
[350000803,1737559845397,-486.55938907,0.0002107,2]
[350000804,1737559845408,-1134.87,0.0002107,2]
[350000805,1737559845418,-500.0,0.0002107,2]
[350000806,1737559845428,-500.0,0.0002107,2]
[350000807,1737559845438,-1397.71,0.0002107,2]
[350000808,1737559845448,-500.0,0.0002107,2]
[350000809,1737559845458,-500.0,0.0002107,2]
[350000810,1737559845472,-500.0,0.0002107,2]
[350000811,1737559845482,-500.0,0.0002107,2]
[350000812,1737559845491,-500.0,0.0002107,2]
[350000813,1737559845506,-500.0,0.0002107,2]
[350000814,1737559845516,-500.0,0.0002107,2]
[350000815,1737559845525,-500.0,0.0002107,2]
[350000816,1737559845534,-1000.0,0.0002107,2]
[350000817,1737559845545,-501.42571693,0.0002107,2]
[350000818,1737559845555,-500.0,0.0002107,2]
[350000819,1737559845567,-1012.78,0.0002107,2]
[350000820,1737559845579,-500.0,0.0002107,2]
[350000821,1737559845588,-500.0,0.0002107,2]
[350000822,1737559845598,-500.0,0.0002107,2]
[350000823,1737559845608,-500.0,0.0002107,2]
[350000824,1737559845617,-1875.55,0.0002107,2]
[350000825,1737559845627,-304.38551846,0.0002107,2]
[350000826,1737559845637,-500.0,0.0002107,2]
[350000827,1737559845647,-432.27698808,0.0002107,2]
[350000828,1737559845657,-60916.9841,0.00021071,2]
[350000829,1737559845666,-397.105719,0.00021071,2]
[350000830,1737559845676,-543.59678975,0.00021072,2]
[350000832,1737559845686,-529.48360434,0.00021073,2]
[350000833,1737559845695,-500.0,0.00021073,2]
[350000834,1737559845705,-525.34255962,0.00021073,2]
[350000835,1737559845715,-305.4538828,0.00021073,2]
[350000836,1737559845725,-500.0,0.00021073,2]
[350000837,1737559845735,-405395.49331667,0.00021079,2]
[350000838,1737559845746,-500.0,0.00021079,2]
[350000839,1737559845755,-55664.1719,0.0002114,2]
[350000840,1737559845765,-543.59678975,0.00021141,2]
[350000841,1737559845776,-150.0,0.00021147,2]
[350000842,1737559845786,-150.0,0.00021162,2]
[350000843,1737559845795,-500.0,0.0002117,2]
[350000844,1737559845805,-1097.0,0.00021171,2]
[350000845,1737559845815,-500.0,0.00021171,2]
[350000846,1737559845825,-616.54,0.00021171,2]
[350000847,1737559845835,-500.0,0.00021171,2]
[350000848,1737559845844,-522.74,0.00021171,2]
[350000849,1737559845854,-500.0,0.00021171,2]
[350000850,1737559846011,-500.0,0.00021171,2]
[350000851,1737559846021,-500.0,0.00021171,2]
[350000852,1737559846031,-500.0,0.00021171,2]
[350000853,1737559846040,-500.0,0.00021171,2]
[350000854,1737559846050,-500.0,0.00021171,2]
[350000855,1737559846060,-500.0,0.00021171,2]
[350000856,1737559846070,-500.0,0.00021171,2]
[350000857,1737559846079,-500.0,0.00021171,2]
[350000858,1737559846089,-150.0,0.00021171,2]
[350000859,1737559846099,-500.0,0.00021171,2]
[350000860,1737559846109,-500.0,0.00021171,2]
[350000861,1737559846118,-500.0,0.00021171,2]
[350000862,1737559846128,-500.0,0.00021171,2]
[350000863,1737559846138,-500.0,0.00021171,2]
[350000864,1737559846148,-500.0,0.00021171,2]
[350000865,1737559846157,-500.0,0.00021171,2]
[350000866,1737559846167,-500.0,0.00021171,2]
[350000868,1737559846177,-724.59,0.00021171,2]
[350000870,1737559846187,-500.0,0.00021171,2]
[350000871,1737559846196,-500.0,0.00021171,2]
[350000873,1737559846205,-553.57,0.00021171,2]
[350000875,1737559846215,-658.71,0.00021171,2]
[350000877,1737559846224,-500.0,0.00021171,2]
[350000879,1737559846233,-500.0,0.00021171,2]
[350000881,1737559846243,-500.0,0.00021171,2]
[350000884,1737559846258,-500.0,0.00021171,2]
[350000886,1737559846268,-500.0,0.00021171,2]
[350000887,1737559846277,-584.58,0.00021171,2]
[350000890,1737559846287,-500.0,0.00021171,2]
[350000891,1737559846297,-500.0,0.00021171,2]
[350000893,1737559846307,-500.0,0.00021171,2]
[350000895,1737559846317,-500.0,0.00021171,2]
[350000896,1737559846327,-500.0,0.00021171,2]
[350000897,1737559846336,-500.0,0.00021171,2]
[350000898,1737559846346,-500.0,0.00021171,2]
[350000899,1737559846356,-500.0,0.00021171,2]
[350000900,1737559846367,-564.32,0.00021171,2]
[350000901,1737559846377,-754.14,0.00021171,2]
[350000902,1737559846387,-904.28,0.00021171,2]
[350000903,1737559846397,-500.0,0.00021171,2]
[350000904,1737559846407,-500.0,0.00021171,2]
[350000905,1737559846417,-500.0,0.00021171,2]
[350000906,1737559846427,-500.0,0.00021171,2]
[350000907,1737559846436,-876.09,0.00021171,2]
[350000908,1737559846446,-500.0,0.00021171,2]
[350000909,1737559846456,-686.57,0.00021171,2]
[350000910,1737559846471,-833.9,0.00021171,2]
[350000911,1737559846481,-500.0,0.00021171,2]
[350000912,1737559846492,-500.0,0.00021171,2]
[350000913,1737559846506,-500.0,0.00021171,2]
[350000914,1737559846516,-500.0,0.00021171,2]
[350000915,1737559846526,-520.78,0.00021171,2]
[350000916,1737559846536,-500.0,0.00021171,2]
[350000917,1737559846547,-500.0,0.00021171,2]
[350000918,1737559846557,-500.0,0.00021171,2]
[350000919,1737559846567,-500.0,0.00021171,2]
[350000920,1737559846576,-573.05,0.00021171,2]
[350000921,1737559846586,-500.0,0.00021171,2]
[350000922,1737559846596,-500.0,0.00021171,2]
[350000923,1737559846605,-521.09,0.00021171,2]
[350000924,1737559846615,-500.0,0.00021171,2]
[350000925,1737559846624,-607.68,0.00021171,2]
[350000926,1737559846634,-500.0,0.00021171,2]
[350000927,1737559846644,-500.69113799,0.00021173,2]
[350000928,1737559846653,-151.08149732,0.00021173,2]
[350000929,1737559846663,-2000.0,0.00021176,2]
[350000930,1737559846672,-200.0,0.00021176,2]
[350000931,1737559846682,-500.0,0.00021178,2]
[350000932,1737559846692,-879.31,0.00021178,2]
[350000933,1737559846702,-500.0,0.00021199,2]
[350000934,1737559846711,-500.0,0.00021199,2]
[350000935,1737559846721,-500.0,0.00021199,2]
[350000936,1737559846730,-999.0,0.00021199,2]
[350000937,1737559846740,-2317.70744729,0.000212,2]
[350000938,1737559846752,-684240.73335318,0.000212,2]
[350000939,1737559846762,-301.266657,0.000212,2]
[350000940,1737559846771,-151.689178,0.000212,2]
[350000941,1737559846781,-151.0,0.000212,2]
[350000942,1737559846791,-151.0,0.000212,2]
[350000943,1737559846800,-257.854619,0.000212,2]
[350000944,1737559846809,-251.140723,0.000212,2]
[350000945,1737559846819,-257.854619,0.000212,2]
[350000946,1737559846828,-151.0,0.000212,2]
[350000947,1737559846838,-171.662017,0.000212,2]
[350000948,1737559846847,-169.920543,0.000212,2]
[350000949,1737559846857,-169.920543,0.000212,2]
[350000950,1737559846867,-211.337045,0.000212,2]
[350000951,1737559846876,-211.337045,0.000212,2]
[350000952,1737559846886,-151.0,0.000212,2]
[350000953,1737559846895,-416.38823,0.000212,2]
[350000954,1737559846905,-416.38823,0.000212,2]
[350000955,1737559846918,-231.2343,0.000212,2]
[350000956,1737559846933,-151.0,0.000212,2]
[350000957,1737559846943,-231.2343,0.000212,2]
[350000958,1737559846954,-151.0,0.000212,2]
[350000959,1737559846964,-151.0,0.000212,2]
[350000960,1737559846974,-151.0,0.000212,2]
[350000961,1737559846983,-151.0,0.000212,2]
[350000962,1737559846993,-675.782886,0.000212,2]
[350000963,1737559847007,-675.782886,0.000212,2]
[350000964,1737559847017,-151.0,0.000212,2]
[350000965,1737559847026,-151.0,0.000212,2]
[350000966,1737559847036,-151.0,0.000212,2]
[350000967,1737559847045,-151.0,0.000212,2]
[350000968,1737559847055,-151.0,0.000212,2]
[350000969,1737559847064,-151.0,0.000212,2]
[350000970,1737559847074,-151.0,0.000212,2]
[350000971,1737559847084,-151.0,0.000212,2]
[350000972,1737559847094,-9145.242148,0.000212,2]
[350000973,1737559847103,-9145.242148,0.000212,2]
[350000974,1737559847112,-151.0,0.000212,2]
[350000975,1737559847122,-151.0,0.000212,2]
[350000976,1737559847132,-250.0,0.000212,2]
[350000977,1737559847142,-250.0,0.000212,2]
[350000978,1737559847152,-425.8,0.000212,2]
[350000979,1737559847162,-343.450284,0.000212,2]
[350000980,1737559847172,-151.0,0.000212,2]
[350000981,1737559847181,-343.450284,0.000212,2]
[350000982,1737559847191,-151.0,0.000212,2]
[350000983,1737559847201,-397.105719,0.00021209,2]
[350000984,1737559847211,-543.59678975,0.0002121,2]
[350000985,1737559847222,-150.0,0.00021213,2]
[350000986,1737559847232,-150.0,0.00021227,2]
[350000987,1737559847241,-500.0,0.00021228,2]
[350000988,1737559847255,-500.0,0.00021229,2]
[350000989,1737559847265,-1006.8,0.00021238,2]
[350000990,1737559847274,-666.24,0.00021238,2]
[350000991,1737559847284,-500.0,0.00021238,2]
[350000992,1737559847293,-1891.84,0.00021238,2]
[350000993,1737559847303,-723.62,0.00021238,2]
[350000994,1737559847313,-1279.43,0.00021238,2]
[350000995,1737559847323,-1884.29,0.00021238,2]
[350000996,1737559847332,-1305.02,0.00021238,2]
[350000997,1737559847343,-1478.54,0.00021238,2]
[350000998,1737559847353,-500.0,0.00021238,2]
[350000999,1737559847363,-932.77,0.00021238,2]
[350001000,1737559847372,-500.0,0.00021238,2]
[350001001,1737559847382,-1080.68,0.00021238,2]
[350001002,1737559847391,-2022.63,0.00021238,2]
[350001003,1737559847400,-1737.05,0.00021238,2]
[350001004,1737559847410,-1129.16,0.00021238,2]
[350001005,1737559847420,-986.56,0.00021238,2]
[350001006,1737559847430,-674.2,0.00021238,2]
[350001007,1737559847440,-2819.53,0.00021238,2]
[350001008,1737559847450,-500.0,0.00021238,2]
[350001009,1737559847461,-1280.34,0.00021238,2]
[350001010,1737559847473,-696.48,0.00021238,2]
[350001011,1737559847483,-715.26,0.00021238,2]
[350001012,1737559847493,-500.0,0.00021238,2]
[350001013,1737559847506,-500.0,0.00021238,2]
[350001014,1737559847516,-500.0,0.00021238,2]
[350001015,1737559847527,-504.49266907,0.00021238,2]
[350001016,1737559847537,-500.0,0.00021238,2]
[350001017,1737559847548,-528.59,0.00021238,2]
[350001018,1737559847558,-500.0,0.00021238,2]
[350001019,1737559847568,-3381.0,0.00021238,2]
[350001020,1737559847578,-500.0,0.00021238,2]
[350001021,1737559847588,-500.0,0.00021238,2]
[350001022,1737559847598,-1219.89,0.00021238,2]
[350001023,1737559847607,-691.93,0.00021239,2]
[350001024,1737559847618,-571.38,0.00021239,2]
[350001025,1737559847627,-819.94,0.00021239,2]
[350001026,1737559847638,-500.0,0.00021239,2]
[350001027,1737559847648,-500.0,0.00021239,2]
[350001028,1737559847658,-500.0,0.00021239,2]
[350001029,1737559847667,-500.0,0.00021239,2]
[350001030,1737559847676,-500.0,0.00021239,2]
[350001031,1737559847686,-500.0,0.00021239,2]
[350001032,1737559847696,-743.05,0.00021239,2]
[350001033,1737559847706,-338.54,0.00021239,2]
[350001034,1737559847715,-500.0,0.00021239,2]
[350001035,1737559847725,-793.87,0.00021239,2]
[350001036,1737559847735,-500.0,0.00021239,2]
[350001037,1737559847744,-949.38,0.00021239,2]
[350001038,1737559847757,-500.0,0.00021239,2]
[350001039,1737559847766,-500.0,0.00021239,2]
[350001040,1737559847776,-534.34826693,0.00021239,2]
[350001041,1737559847786,-500.0,0.00021239,2]
[350001042,1737559847795,-500.0,0.00021239,2]
[350001043,1737559847805,-992.003819,0.00021239,2]
[350001044,1737559847815,-500.0,0.00021239,2]
[350001045,1737559847824,-500.0,0.00021239,2]
[350001046,1737559847834,-500.0,0.00021239,2]
[350001047,1737559847844,-500.0,0.00021239,2]
[350001048,1737559847853,-500.0,0.00021239,2]
[350001049,1737559847863,-500.0,0.00021239,2]
[350001050,1737559847872,-500.0,0.00021239,2]
[350001051,1737559847882,-976.7,0.00021239,2]
[350001052,1737559847891,-500.0,0.00021239,2]
[350001053,1737559847905,-500.0,0.00021239,2]
[350001054,1737559847915,-500.0,0.00021239,2]
[350001055,1737559847925,-901.92,0.00021239,2]
[350001056,1737559847935,-500.0,0.00021239,2]
[350001057,1737559847945,-500.0,0.00021239,2]
[350001058,1737559847955,-500.0,0.00021239,2]
[350001059,1737559847964,-312.13724568,0.00021239,2]
[350001060,1737559847974,-500.0,0.00021239,2]
[350001061,1737559847983,-753.38,0.00021239,2]
[350001062,1737559847993,-500.0,0.00021239,2]
[350001063,1737559848004,-500.0,0.00021239,2]
[350001064,1737559848014,-500.0,0.00021239,2]
[350001065,1737559848024,-500.0,0.00021239,2]
[350001066,1737559848034,-500.0,0.00021239,2]
[350001067,1737559848044,-500.0,0.00021239,2]
[350001068,1737559848054,-1116.76,0.00021239,2]
[350001069,1737559848063,-500.0,0.00021239,2]
[350001070,1737559848073,-744.1,0.00021239,2]
[350001071,1737559848085,-500.0,0.00021239,2]
[350001072,1737559848098,-500.0,0.00021239,2]
[350001073,1737559848113,-788.15,0.00021239,2]
[350001074,1737559848125,-500.0,0.00021239,2]
[350001075,1737559848136,-927.11,0.00021239,2]
[350001076,1737559848145,-500.0,0.00021239,2]
[350001077,1737559848155,-869.66,0.00021239,2]
[350001078,1737559848165,-500.0,0.00021239,2]
[350001079,1737559848176,-500.0,0.00021239,2]
[350001080,1737559848186,-648.72,0.00021239,2]
[350001081,1737559848195,-862.05,0.00021239,2]
[350001082,1737559848205,-767.96,0.00021239,2]
[350001083,1737559848215,-616.08,0.00021239,2]
[350001084,1737559848226,-500.0,0.00021239,2]
[350001085,1737559848237,-500.0,0.00021239,2]
[350001086,1737559848247,-500.0,0.00021239,2]
[350001087,1737559848261,-762.49,0.00021239,2]
[350001088,1737559848271,-1910.63,0.00021239,2]
[350001089,1737559848282,-1286.89,0.00021239,2]
[350001090,1737559848292,-649.4,0.00021239,2]
[350001091,1737559848302,-500.0,0.00021239,2]
[350001092,1737559848313,-1146.13,0.00021239,2]
[350001093,1737559848323,-500.0,0.00021239,2]
[350001094,1737559848333,-500.0,0.00021239,2]
[350001095,1737559848343,-568.58,0.00021239,2]
[350001096,1737559848353,-982.64,0.00021239,2]
[350001097,1737559848363,-500.0,0.00021239,2]
[350001098,1737559848373,-1247.31,0.00021239,2]
[350001099,1737559848384,-500.0,0.00021239,2]
[350001100,1737559848393,-500.0,0.00021239,2]
[350001101,1737559848404,-1734.45,0.00021239,2]
[350001102,1737559848414,-867.25,0.00021239,2]
[350001103,1737559848424,-500.0,0.00021239,2]
[350001104,1737559848434,-1171.71,0.00021239,2]
[350001105,1737559848444,-1016.82,0.00021239,2]
[350001106,1737559848454,-1326.14,0.00021239,2]
[350001107,1737559848465,-500.0,0.00021239,2]
[350001108,1737559848478,-1856.8,0.00021239,2]
[350001109,1737559848488,-1005.05,0.00021239,2]
[350001110,1737559848540,-1850.97,0.00021239,2]
[350001111,1737559848551,-811.21,0.00021239,2]
[350001112,1737559848561,-1027.09,0.00021239,2]
[350001113,1737559848572,-799.26,0.00021239,2]
[350001114,1737559848583,-1105.72,0.00021239,2]
[350001115,1737559848593,-789.37,0.00021239,2]
[350001116,1737559848603,-2094.63,0.00021239,2]
[350001117,1737559848613,-763.4,0.00021239,2]
[350001118,1737559848623,-3198.46,0.00021239,2]
[350001119,1737559848633,-3000.37,0.00021239,2]
[350001120,1737559848643,-1303.58,0.00021239,2]
[350001121,1737559848653,-2280.77,0.00021239,2]
[350001122,1737559848663,-1499.74,0.00021239,2]
[350001123,1737559848673,-776.08,0.00021239,2]
[350001124,1737559848684,-1850.64,0.00021239,2]
[350001125,1737559848694,-3563.92,0.00021239,2]
[350001126,1737559848704,-500.0,0.00021239,2]
[350001127,1737559848714,-977.78,0.00021239,2]
[350001128,1737559848723,-2509.3,0.00021239,2]
[350001129,1737559848734,-3120.07,0.00021239,2]
[350001130,1737559848743,-1188.19,0.00021239,2]
[350001131,1737559848755,-647.6,0.00021239,2]
[350001132,1737559848765,-500.0,0.00021239,2]
[350001133,1737559848775,-500.0,0.00021239,2]
[350001134,1737559848785,-1057.85,0.00021239,2]
[350001135,1737559848796,-500.0,0.00021239,2]
[350001136,1737559848806,-561.99,0.00021239,2]
[350001137,1737559848816,-580.01429147,0.00021239,2]
[350001138,1737559848826,-500.0,0.00021239,2]
[350001139,1737559848836,-1310.57,0.00021239,2]
[350001140,1737559848846,-500.0,0.00021239,2]
[350001141,1737559848856,-500.0,0.00021239,2]
[350001142,1737559848867,-1346.55,0.00021239,2]
[350001143,1737559848876,-500.0,0.00021239,2]
[350001144,1737559848887,-1477.61,0.00021239,2]
[350001145,1737559848896,-3380.87,0.00021239,2]
[350001146,1737559848906,-528.41,0.00021239,2]
[350001147,1737559848917,-1785.61,0.00021239,2]
[350001148,1737559848927,-500.0,0.00021239,2]
[350001149,1737559848938,-995.58,0.00021239,2]
[350001150,1737559848948,-500.0,0.00021239,2]
[350001151,1737559848957,-500.0,0.00021239,2]
[350001152,1737559848966,-500.0,0.00021239,2]
[350001153,1737559848975,-1234.29,0.00021239,2]
[350001154,1737559848985,-1761.31,0.00021239,2]
[350001155,1737559848995,-500.0,0.0002124,2]
[350001156,1737559849007,-500.0,0.0002124,2]
[350001157,1737559849017,-500.0,0.0002124,2]
[350001158,1737559849026,-500.0,0.0002124,2]
[350001159,1737559849036,-511.51017115,0.0002124,2]
[350001160,1737559849046,-500.0,0.0002124,2]
[350001161,1737559849056,-334.01453175,0.0002124,2]
[350001162,1737559849066,-158.64549848,0.0002124,2]
[350001163,1737559849075,-366.54976386,0.0002124,2]
[350001164,1737559849085,-500.0,0.0002124,2]
[350001165,1737559849094,-500.0,0.0002124,2]
[350001166,1737559849104,-393.30065698,0.0002124,2]
[350001167,1737559849113,-500.0,0.0002124,2]
[350001168,1737559849123,-500.0,0.0002124,2]
[350001169,1737559849133,-500.0,0.0002124,2]
[350001170,1737559849142,-500.0,0.0002124,2]
[350001171,1737559849152,-500.0,0.0002124,2]
[350001172,1737559849162,-500.0,0.0002124,2]
[350001173,1737559849172,-500.0,0.0002124,2]
[350001174,1737559849181,-500.0,0.0002124,2]
[350001175,1737559849191,-500.0,0.0002124,2]
[350001176,1737559849200,-500.0,0.0002124,2]
[350001177,1737559849209,-500.0,0.0002124,2]
[350001178,1737559849219,-812.27,0.0002124,2]
[350001179,1737559849228,-500.0,0.0002124,2]
[350001180,1737559849237,-500.0,0.0002124,2]
[350001181,1737559849247,-500.0,0.0002124,2]
[350001182,1737559849261,-500.0,0.0002124,2]
[350001183,1737559849271,-1000.36,0.0002124,2]
[350001184,1737559849280,-500.0,0.0002124,2]
[350001185,1737559849290,-957.66,0.0002124,2]
[350001186,1737559849299,-492.99,0.0002124,2]
[350001187,1737559849309,-792.02,0.0002124,2]
[350001188,1737559849319,-500.0,0.0002124,2]
[350001189,1737559849328,-500.0,0.0002124,2]
[350001190,1737559849338,-500.0,0.0002124,2]
[350001191,1737559849347,-500.0,0.0002124,2]
[350001192,1737559849356,-668.87,0.0002124,2]
[350001193,1737559849366,-500.0,0.0002124,2]
[350001194,1737559849375,-500.0,0.0002124,2]
[350001195,1737559849384,-500.0,0.0002124,2]
[350001196,1737559849393,-500.0,0.0002124,2]
[350001197,1737559849403,-500.0,0.0002124,2]
[350001198,1737559849412,-8634.61777168,0.0002124,2]
[350001199,1737559849421,-150.0,0.00021242,2]
[350001200,1737559849431,-150.0,0.00021244,2]
[350001201,1737559849440,-150.0,0.00021246,2]
[350001202,1737559849450,-1000.0,0.00021256,2]
[350001203,1737559849459,-487.01566398,0.00021272,2]
[350001204,1737559849476,-150.0,0.00021273,2]
[350001205,1737559849485,-543.59678975,0.00021279,2]
[350001206,1737559849495,-500.0,0.00021299,2]
[350001207,1737559849506,-150.0,0.000213,2]
[350001208,1737559849516,-1828.16843547,0.000213,2]
[350001209,1737559849525,-167.08419073,0.000213,2]
[350001210,1737559849535,-132259.66292825,0.000213,4]
[350001211,1737559849778,-44800.59596374,0.000213,4]
[350001212,1737559849790,-231.2343,0.000213,2]
[350001213,1737559849800,-151.0,0.000213,2]
[350001214,1737559849809,-231.2343,0.000213,2]
[350001215,1737559849819,-151.0,0.000213,2]
[350001216,1737559849829,-151.0,0.000213,2]
[350001217,1737559849839,-151.0,0.000213,2]
[350001218,1737559849849,-675.782886,0.000213,2]
[350001219,1737559849858,-675.782886,0.000213,2]
[350001220,1737559849868,-151.0,0.000213,2]
[350001221,1737559849878,-151.0,0.000213,2]
[350001222,1737559849888,-151.0,0.000213,2]
[350001223,1737559849898,-289.66566007,0.000213,3]
[350001224,1737559849907,-151.0,0.000213,2]
[350001225,1737559849918,-151.0,0.000213,2]
[350001226,1737559849929,-199.314792,0.000213,2]
[350001227,1737559849940,-151.0,0.000213,2]
[350001228,1737559849952,-9145.242148,0.000213,2]
[350001229,1737559849962,-9145.242148,0.000213,2]
[350001230,1737559849972,-151.0,0.000213,2]
[350001231,1737559849981,-151.0,0.000213,2]
[350001232,1737559849991,-194.32161878,0.000213,2]
[350001233,1737559850002,-231.0,0.000213,2]
[350001234,1737559850012,-343.450284,0.000213,2]
[350001235,1737559850022,-237.152806,0.000213,2]
[350001236,1737559850031,-343.450284,0.000213,2]
[350001237,1737559850041,-1376.0994064,0.000213,2]
[350001238,1737559850051,-151.0,0.000213,2]
[350001239,1737559850060,-200.0,0.000213,2]
[350001240,1737559850070,-150.0,0.00021312,2]
[350001241,1737559850080,-153.14980159,0.00021315,2]
[350001242,1737559850089,-150.0,0.00021317,2]
[350001243,1737559850099,-150.0,0.00021328,2]
[350001244,1737559850109,-500.0,0.00021343,2]
[350001245,1737559850118,-500.0,0.00021344,2]
[350001246,1737559850127,-500.0,0.00021344,2]
[350001247,1737559850137,-500.0,0.00021344,2]
[350001248,1737559850147,-500.0,0.00021344,2]
[350001249,1737559850157,-514.25260461,0.00021344,2]
[350001250,1737559850166,-500.0,0.00021344,2]
[350001251,1737559850179,-500.0,0.00021344,2]
[350001252,1737559850188,-500.0,0.00021344,2]
[350001253,1737559850198,-500.0,0.00021344,2]
[350001254,1737559850209,-500.0,0.00021344,2]
[350001255,1737559850218,-500.0,0.00021344,2]
[350001256,1737559850229,-500.0,0.00021344,2]
[350001257,1737559850238,-500.0,0.00021344,2]
[350001258,1737559850247,-500.0,0.00021344,2]
[350001259,1737559850259,-517.55481756,0.00021344,2]
[350001260,1737559850268,-500.0,0.00021344,2]
[350001261,1737559850278,-500.0,0.00021344,2]
[350001262,1737559850288,-500.0,0.00021344,2]
[350001263,1737559850298,-500.0,0.00021344,2]
[350001264,1737559850307,-500.0,0.00021344,2]
[350001265,1737559850317,-155.1019774,0.00021344,2]
[350001266,1737559850327,-500.0,0.00021344,2]
[350001267,1737559850336,-321.34195063,0.00021344,2]
[350001268,1737559850346,-500.0,0.00021344,2]
[350001269,1737559850355,-500.0,0.00021344,2]
[350001270,1737559850366,-500.0,0.00021344,2]
[350001271,1737559850376,-500.0,0.00021344,2]
[350001272,1737559850385,-500.0,0.00021344,2]
[350001273,1737559850395,-500.0,0.00021344,2]
[350001274,1737559850405,-500.0,0.00021344,2]
[350001275,1737559850414,-500.0,0.00021344,2]
[350001276,1737559850423,-500.0,0.00021344,2]
[350001277,1737559850433,-624.42406703,0.00021344,2]
[350001278,1737559850443,-500.0,0.00021344,2]
[350001279,1737559850452,-500.0,0.00021344,2]
[350001280,1737559850464,-202.85641197,0.00021344,2]
[350001281,1737559850474,-500.0,0.00021344,2]
[350001282,1737559850485,-151.0,0.00021344,2]
[350001283,1737559850494,-151.0,0.00021344,2]
[350001284,1737559850507,-500.0,0.00021344,2]
[350001285,1737559850517,-151.0,0.00021344,2]
[350001286,1737559850527,-500.0,0.00021344,2]
[350001287,1737559850538,-500.0,0.00021344,2]
[350001288,1737559850548,-151.0,0.00021344,2]
[350001289,1737559850558,-500.0,0.00021344,2]
[350001290,1737559850567,-371.486308,0.00021344,2]
[350001291,1737559850577,-151.0,0.00021344,2]